Cogmind - Beta 9.6 @@@ ROGUE MODE // 2020.09.05 @ 12:49:26 Player: scoobysnack1 Result: Destroyed by D-53 Grenadier with Mini Grenade Launcher Performance ------------- Evolutions (0) 0 Regions Visited (2) 400 Robots Destroyed (46) 230 Value Destroyed (784) 784 Prototype IDs (0) 0 Alien Tech Used (0) 0 Bonus (6) 6 TOTAL SCORE: 1420 Bonus ------- High Alert Combat Kills 6 Cogmind --------- Core Integrity 0/250 Matter 190/300 Energy 100/100 System Corruption 0% Temperature Cool (0) Movement Core (150) Ox2 Location -10/Mines Parts ------- > --- POWER (1) -------- (None) > --- PROPULSION (2) --- (None) > --- UTILITY (2) ------ Medium Storage Unit > --- WEAPON (2) ------- (None) > --- INVENTORY (8) ---- Light Treads Signal Interpreter Medium Armor Plating Light EM Pulse Cannon Light EM Pulse Cannon Light Cannon Peak State ------------ > --- POWER ------------ Ion Engine > --- PROPULSION ------- Light Treads Light Treads > --- UTILITY ---------- Medium Storage Unit Medium Armor Plating > --- WEAPON ----------- Light EM Pulse Cannon Grenade Launcher > --- INVENTORY -------- Signal Interpreter Light Armor Plating Medium Armor Plating Medium Armor Plating Light Cannon Light Cannon Light Cannon Datajack [Rating: 10] Favorites ----------- Power Ion Engine Engine Ion Engine Propulsion Light Treads Treads Light Treads Wheel Compact Wheel Utility Medium Storage Unit Storage Medium Storage Unit Protection Medium Armor Plating Weapon Light Cannon Energy Gun Small Laser Energy Cannon Light EM Pulse Cannon Ballistic Gun Light Assault Rifle Ballistic Cannon Light Cannon Launcher Grenade Launcher Special Melee Weapon Datajack Build | -11 -10 -10 ------- Run | Scr Mat Min Slots Evolved . | . . . Power . | . . . Propulsion . | . . . Utility . | . . . Weapon . | . . . Parts Attached 35 | 9 21 5 Power 4 | 1 3 . Engine 4 | 1 3 . Core . | . . . Reactor . | . . . Propulsion 6 | 2 4 . Treads 4 | . 4 . Leg . | . . . Wheel 2 | 2 . . Hover . | . . . Flight . | . . . Utility 6 | 2 3 1 Device . | . . . Storage 3 | 2 1 . Processor . | . . . Hackware . | . . . Protection 3 | . 2 1 Artifact . | . . . Weapon 19 | 4 11 4 Energy Gun 2 | 2 . . Energy Cannon 3 | . 2 1 Ballistic Gun 2 | 2 . . Ballistic Cannon 6 | . 4 2 Launcher 5 | . 4 1 Special Weapon . | . . . Impact Weapon . | . . . Slashing Weapon . | . . . Piercing Weapon . | . . . Special Melee Weapon 1 | . 1 . Unidentified Prototypes . | . . . Parts Lost 8 | . . 8 Power 1 | . . 1 Propulsion 1 | . . 1 Utility 2 | . . 2 Weapon 4 | . . 4 Highest Loss Streak 5 | . . 5 Average Slot Usage (%) 96 | . 99 80 Engine 13 | . 13 8 Treads 23 | . 24 18 Wheel 3 | . 3 . Storage 15 | . 15 14 Protection 12 | . 12 11 Energy Cannon 8 | . 7 12 Ballistic Gun 1 | . 1 . Ballistic Cannon 9 | . 9 13 Launcher 7 | . 8 . Naked Turns . | . . . Heaviest Build 27 | 14 27 27 Greatest Support 40 | 32 40 40 Greatest Overweight (x) 4 | 2 . 4 Average Overweight (x) . | . . . Largest Inventory Capacity 10 | 8 10 8 Average Capacity 8 | 7 8 8 Most Carried 8 | 4 8 8 Average Carried 7 | 1 7 7 Final Capacity 8 | 8 8 8 Final Carried 8 | 4 8 6 Class Distribution -------------------- 100% | Mutant Dominant Class ---------------- Mutant | -10/Materials Mutant | -10/Mines Resources | -11 -10 -10 ----------- Run | Scr Mat Min Matter Collected 801 | 296 473 32 Remotely . | . . . Salvage Created 1165 | 93 735 337 Parts 74 | 2 59 13 Haulers Intercepted 1 | . 1 . Recyclers Shooed 5 | . 5 . Parts Field Recycled . | . . . Retrieved Matter . | . . . Parts Self-Destructed . | . . . Prevented . | . . . Kills | -11 -10 -10 ------- Run | Scr Mat Min Combat Hostiles Destroyed 31 | . 21 10 Guns 1 | . 1 . Cannons 15 | . 7 8 AOE 15 | . 13 2 Classes Destroyed 9 | 1 7 1 Worker 1 | . 1 . Builder 2 | . 1 1 Hauler 1 | . 1 . Recycler 6 | 1 3 2 Operator 3 | . 3 . Watcher 2 | . 2 . Swarmer 9 | . 9 . Grunt 14 | . 12 2 Assembled 8 | . . 8 Best Kill Streak 10 | 1 7 10 Combat Bots Only 7 | . 6 7 Max Kills in Single Turn 4 | 1 4 4 Gunslinging . | . . . Exploded 3 | . 3 2 Melee . | . . . Uniques/NPCs Destroyed . | . . . Combat | -11 -10 -10 -------- Run | Scr Mat Min Damage Taken 1423 | . 340 1083 Core 251 | . 42 209 Absorbed by Shields . | . . . Core Remaining (%) 100 | 100 . . Volleys Fired 100 | 6 63 31 Largest 2 | 1 2 2 Hottest 91 | 20 91 91 Shots Fired 136 | 6 88 42 Gun 38 | 6 32 . Cannon 83 | . 43 40 Launcher 15 | . 13 2 Special . | . . . Kinetic 97 | 6 63 28 Thermal 9 | . 9 . Explosive 15 | . 13 2 Electromagnetic 15 | . 3 12 Robot Hit Streak 8 | 6 8 4 Robot Miss Streak 5 | . 5 5 Penetration Max . | . . . Secondary Targets . | . . . Shots Hit Robots 70 | 6 48 16 Core Hits 67 | 2 46 19 Critical Hits 1 | . 1 . Critical Kills . | . . . Critical Parts Destroyed 1 | . 1 . Melee Attacks 1 | . 1 . Impact . | . . . Slashing . | . . . Piercing . | . . . Sneak Attacks . | . . . Combat Hostiles . | . . . Follow-up Attacks . | . . . Damage Inflicted 2306 | 48 1697 561 Guns 175 | 48 127 . Cannons 749 | . 403 346 Explosions 1369 | . 1154 215 Melee . | . . . Ramming 13 | . 13 . Kinetic 619 | 48 361 210 Thermal 233 | . 99 134 Explosive 1235 | . 1154 81 Electromagnetic 206 | . 70 136 Impact . | . . . Slashing . | . . . Piercing . | . . . Highest Corruption . | . . . Average Corruption . | . . . Corruption Purged . | . . . Overload Shots . | . . . Overflow Damage 54 | . 41 13 Projectiles 13 | . . 13 Explosions 41 | . 41 . Melee . | . . . Knockbacks 8 | . 4 4 Impact . | . . . Kinetic 7 | . 4 3 Secondary 1 | . . 1 Self-Inflicted Damage . | . . . Shots . | . . . Rammed 3 | . 3 . Targets Rammed 3 | . 3 . Kicked . | . . . Crushed . | . . . Highest Temperature 213 | . 159 213 Average Temperature 62 | . 45 94 Received Heat Transfer 141 | . 123 18 Siege Activations . | . . . Robots Corrupted . | . . . Combat Hostiles . | . . . Parts Fried . | . . . Impact Corruptions . | . . . Robots Melted . | . . . Combat Hostiles . | . . . Parts Melted . | . . . Heat Transferred 410 | . 210 200 Parts Sabotaged . | . . . Parts Stolen . | . . . Parts Stripped . | . . . Power Chain Reactions 1 | . . 1 Missiles Intercepted . | . . . Alert | -11 -10 -10 ------- Run | Scr Mat Min Peak Influence 460 | 5 460 176 Average Influence 271 | 4 309 124 Maximum Alert Level 2 | . 2 . Low Security (%) 23 | 100 7 100 Level 1 70 | . 85 . Level 2 5 | . 7 . Level 3 . | . . . Level 4 . | . . . Level 5 . | . . . High Security . | . . . Max Security . | . . . Squads Dispatched 3 | . 3 . Investigation . | . . . Extermination . | . . . Reinforcement 3 | . 3 . Assault . | . . . Garrison . | . . . Intercept . | . . . Construction Impeded . | . . . Haulers Reinforced . | . . . Stealth | -11 -10 -10 --------- Run | Scr Mat Min Distress Signals 1 | . 1 . Communications Jammed . | . . . Distress Signals . | . . . Times Spotted 45 | . 32 13 Peak Tracking Total 9 | . 8 9 Tactical Retreats . | . . . Traps | -11 -10 -10 ------- Run | Scr Mat Min Traps Triggered 1 | . 1 . Indirectly . | . . . Trap Hack Attempts 21 | . 21 . Triggered . | . . . Disarmed . | . . . Reprogrammed 2 | . 2 . Reused . | . . . Traps Extracted . | . . . Installed . | . . . Triggered . | . . . Machines | -11 -10 -10 ---------- Run | Scr Mat Min Machines Disabled 5 | . 4 1 Max in Single Turn 1 | . 1 1 Machines Sabotaged . | . . . Garrisons Compromised . | . . . Overloaded Fab Kills . | . . . Fab Network Shutdowns . | . . . Hacking | -11 -10 -10 --------- Run | Scr Mat Min Machines Accessed 5 | . 5 . Terminals 3 | . 3 . Fabricators . | . . . Repair Stations 1 | . 1 . Recycling Units 1 | . 1 . Scanalyzers . | . . . Garrison Access . | . . . Total Hacks 14 | . 14 . Successful 8 | . 8 . Failed 6 | . 6 . Catastrophic 2 | . 2 . Database Lockouts . | . . . Manual 5 | . 5 . Terminals 9 | . 9 . Fabricators . | . . . Repair Stations 2 | . 2 . Recycling Units 3 | . 3 . Scanalyzers . | . . . Garrison Access . | . . . Terminal Hacks 4 | . 4 . Part Schematic 2 | . 2 . Locate Traps 1 | . 1 . Hauler Manifests 1 | . 1 . Fabricator Hacks . | . . . Repair Station Hacks 1 | . 1 . Scan Component 1 | . 1 . Recycling Unit Hacks 3 | . 3 . Process 1 | . 1 . Retrieve Matter 2 | . 2 . Scanalyzer . | . . . Garrison Access Hacks . | . . . Unauthorized Hacks . | . . . Terminals . | . . . Fabricators . | . . . Repair Stations . | . . . Recycling Units . | . . . Scanalyzers . | . . . Garrison Access . | . . . Data Cores Recovered . | . . . Used . | . . . Hacking Detections 4 | . 4 . Full Trace Events . | . . . Feedback Events . | . . . Feedback Blocked . | . . . Robot Schematics Acquired . | . . . Robots Built . | . . . Matter . | . . . Time . | . . . Total Robot Build Rating . | . . . Part Schematics Acquired 2 | . 2 . Parts Built . | . . . Matter . | . . . Time . | . . . Total Part Build Rating . | . . . Parts Repaired . | . . . Time . | . . . Parts Recycled . | . . . Recycled Matter 21 | . 21 . Retrieved Matter 21 | . 21 . Retrieved Components . | . . . Parts Scanalyzed . | . . . Part Schematics Acquired . | . . . Parts Damaged . | . . . Bothacking | -11 -10 -10 ------------ Run | Scr Mat Min Used RIF Installer . | . . . Robots Hacked . | . . . Non-combat . | . . . Combat . | . . . Robot Hacks Applied . | . . . Relay Couplers Released . | . . . Robots Rewired . | . . . Allies Hacked . | . . . Hacks Repelled . | . . . Allies | -11 -10 -10 -------- Run | Scr Mat Min Total Allies . | . . . Largest Group . | . . . Highest-Rated Group . | . . . Highest-Rated Ally . | . . . Total Orders . | . . . Ally Attacks . | . . . Total Damage . | . . . Kills . | . . . Allies Corrupted . | . . . Allies Melted . | . . . Intel | -11 -10 -10 ------- Run | Scr Mat Min Robot Analysis Total . | . . . Derelict Logs Recovered . | . . . Drone Launches . | . . . Drone Recoveries . | . . . Exploration | -11 -10 -10 ------------- Run | Scr Mat Min Turns Passed 1662 | 80 1373 209 Spaces Moved 837 | 57 703 77 Core 21 | 14 . 7 Treads 664 | . 594 70 Legs . | . . . Wheels 152 | 43 109 . Hover . | . . . Flight . | . . . Fastest Speed 50 | 50 100 150 Average Speed 148 | 92 150 166 Slowest Speed 250 | 150 160 250 Overloaded Moves . | . . . Propulsion Burnouts . | . . . Robots Hopped . | . . . Cave-ins Triggered . | . . . Exploration Rate (%) 43 | 5 95 31 Regions Visited 2 Branch Regions 1 Pre-discovered Areas . | . . . Known Exits Taken . | . . . Unknown Exits Taken 2 | 1 1 . Scrap Searched . | . . . Spaces Dug . | . . . Terrain Destroyed 69 | . 55 14 Melee . | . . . Projectile . | . . . AOE 69 | . 55 14 Actions | -11 -10 -10 --------- Run | Scr Mat Min Total 1128 | 76 937 115 Wait 93 | . 92 1 Move 835 | 56 702 77 Hop . | . . . Pick Up 14 | 3 11 . Fast Attach 18 | 8 10 . Attach 6 | 1 2 3 Detach 8 | 2 5 1 Swap 11 | . 9 2 Drop 18 | . 18 . Fire 100 | 6 63 31 Melee 1 | . 1 . Ram . | . . . Kick . | . . . Crush 3 | . 3 . Escape Stasis . | . . . Rewire . | . . . Trap 21 | . 21 . Miscellaneous . | . . . Route ------- -11/Scrapyard -10/Materials (discovered 5 exits: [*Mat x3] / [*Min x2]) -10/Mines History --------- Turn | Location | Event 6 | -11/Scrapyard | Discovered new exit (range 13) 81 | -11/Scrapyard | Entered Materials 253 | -10/Materials | Discovered new exit (range 8) 308 | -10/Materials | Build established: Mutant 362 | -10/Materials | Discovered new exit (range 14) 518 | -10/Materials | Discovered new exit (range 13) 823 | -10/Materials | Discovered new exit (range 11) 1297 | -10/Materials | Discovered new exit (range 8) 1454 | -10/Materials | Entered Mines 1555 | -10/Mines | Assembled infested the area 1612 | -10/Mines | Lost 5 parts (1p1n1u2w) 1617 | -10/Mines | Destroyed 7 combat bots 1635 | -10/Mines | Core integrity fell below 50% 1663 | -10/Mines | Core integrity fell below 20% 1663 | -10/Mines | Destroyed by D-53 Grenadier with Mini Grenade Launcher Last Messages --------------- 01576_ Grenade Launcher destroyed. 01576_ as-12667 destroyed. 01580_ Lgt. EM Pulse Cannon destroyed. 01581_ Critical hit. 01581_ Ion Engine destroyed. 01587_ as-67461 sneak attacks. 01588_ as-67461 knocked back. 01590_ Core Extractor disabled. 01592_ T-07 Excavator destroyed. 01592_ as-67461 destroyed. 01596_ as-48630 destroyed. 01618_ as-84074 destroyed. 01620_ as-11986 knocked back. 01620_ as-01991 destroyed. 01632_ Destroyed Asb. Hover Unit. 01634_ as-11986 knocked back. 01639_ Med. Armor Plating destroyed. 01640_ as-11986 destroyed. 01645_ Acquired 16 matter. 01661_ Lgt. Cannon destroyed. Map ----- +----------------------------------------------------+ | ?????????????????????????????????????????????????? | | ?????????????????????????????????????????????????? | | ????????????????????????? ???????????????????????? | | ????????????????????????? ????????????????????? | | ???????????????????###??#=! ##???????????????????? | | ??????????????????## ## %%! #???????????????????? | | ????????????????### =!= #???????????????????? | | ???????????????## #???????????????????? | | ???????????????# ##???????????????????? | | ???????????????# #???????????????????? | | ???????????????# %% ????????????????????? | | ???????????????# #?????????????????????? | | ????????????????# #?????????????????????? | | ???????????????## ##????????????????????? | | ??????????????## ! ##???????????????????? | | ??????????##### |%* ##??????????????????? | | ???????#### =!! ###????????????????? | | ??????## #????????????????? | | ??????# #???????????????? | | ??????# % ### #???????????????? | | ?????# ###???? ##???????????????? | | ????? d%######?#?##????????????????? | | ????? "" d # ##??????????????????? | | ?????? """ *# ##?????????????????? | | ?????? "" ####??????????????? | | ???????? !%! @ #??????????????? | | ?????????########### #??????????????? | | ???????????????????## # #??????????????? | | ????????????????????# #????????????????? | | ????????????????????### ##????????????????? | | ??????????????????????## #?????????????????? | | ???????????????????????### ###?????????????????? | | ??????????????????????## #???????????????????? | | ?????????????????????## #???????????????????? | | ????????????????????## ##??????????????????? | | ????????????????????# ##?????????????????? | | ????????????????????# #?????????????????? | | ????????????????????## #?????????????????? | | ##?????####?????###### ##?????????????????? | | ####?## ##???## ## ##??????????????????? | | ### ##??# #???????????????????? | | #### ##???????????????????? | | ## ## #????????????????????? | | ###### #???????????????????? | | # ##????## #???????????????????? | | ## ##??????## ##???????????????????? | | ?# ### ##?????????###????????????????????? | | ?# ##?####?????????????????????????????????? | | ?# ##???????????????????????????????????????? | | ?# #????????????????????????????????????????? | +----------------------------------------------------+ Best States ------------- Heat Dissipation 25 Energy Generation 10 Energy Capacity 250 Matter Stores 300 Matter Capacity 300 Sight Range 16 Terrain Scan Density 10 Armor Coverage 225 Evasion (%) 50 Recoil Reduction 2 Item Schematics ----------------- Signal Interpreter | -10/Materials | Hacked Lgt. Treads | -10/Materials | Hacked Robot Schematics ------------------ None Fabricated ------------ Nothing Alien Tech Used ----------------- None Achievements -------------- None Challenges ------------ None Game ------ Seed ImprovedArchitectFacilitator Manual? 0 Play Time 00:24:44 Cumulative 25.0 hours Start 2020.09.05 @ 12:11:04 End 2020.09.05 @ 12:49:26 Sessions 1 Manual Loads 0 Difficulty Rogue Special Mode None Game No. 20 Rogue 20 Adventurer 0 Explorer 0 Win Type - Total 0 Types 0/0/0/0/0/0/0 Lore% 17 Gallery% 24 Achievement% 18 Wizard Run 0 Options --------- ASCII 0 Keyboard 0 Movement Mouse Keybinds 0 Fullscreen 1 Font 18/SmallcapsGlow Map View 76x50 Tactical HUD 1 Map Filters NONE Filters NONE Steam 1 RUN: c5fa026d-b73d-4558-82d5-c6341bf2502e